Cogmind - Beta 15 @@@ ROGUE MODE // 2025.06.07 @ 13:04:29 Player: puppuppit Result: Destroyed by as-55944 with Assembled F-torch Performance ------------- Evolutions (0) 0 Regions Visited (2) 400 Robots Destroyed (16) 80 Value Destroyed (235) 235 Prototype IDs (0) 0 Alien Tech Used (0) 0 Bonus (0) 0 TOTAL SCORE: 715 Bonus ------- None Cogmind --------- Core Integrity 0/250 Matter 246/300 Energy 160/160 System Corruption 2% Temperature Cool (20) Movement Treading (240) Ox1 Location -10/Mines Parts ------- > --- POWER (1) -------- Light Nuclear Core > --- PROPULSION (2) --- Light Treads > --- UTILITY (2) ------ Large Storage Unit Propulsion Shielding > --- WEAPON (2) ------- Light Assault Rifle Grenade Launcher > --- INVENTORY (15) --- Small Storage Unit Improved Terrain Scanner Improved Terrain Scanner Grenade Launcher Rocket Launcher Peak State ------------ > --- POWER ------------ Light Ion Engine > --- PROPULSION ------- Light Treads Light Treads > --- UTILITY ---------- Large Storage Unit Improved Terrain Scanner > --- WEAPON ----------- EM Pulse Gun Assault Rifle > --- INVENTORY -------- Light Nuclear Core Small Storage Unit Improved Terrain Scanner Propulsion Shielding Grenade Launcher Grenade Launcher [Rating: 10] Favorites ----------- Power Light Ion Engine Engine Light Ion Engine Power Core Light Nuclear Core Propulsion Light Treads Treads Light Treads Utility Improved Terrain Scanner Device Improved Terrain Scanner Storage Small Storage Unit Protection Propulsion Shielding Weapon Assault Rifle Energy Gun EM Pulse Gun Ballistic Gun Assault Rifle Launcher Grenade Launcher Build | -11 -10 -10 ------- Run | Yrd Mat Min Slots Evolved . | . . . Power . | . . . Propulsion . | . . . Utility . | . . . Weapon . | . . . Parts Attached 13 | 7 1 5 Power 2 | 1 . 1 Engine 1 | 1 . . Core 1 | . . 1 Reactor . | . . . Propulsion 2 | 2 . . Treads 2 | 2 . . Leg . | . . . Wheel . | . . . Hover . | . . . Flight . | . . . Utility 4 | 2 1 1 Device 1 | 1 . . Storage 2 | 1 1 . Processor . | . . . Hackware . | . . . Protection 1 | . . 1 Artifact . | . . . Weapon 5 | 2 . 3 Energy Gun 1 | 1 . . Energy Cannon . | . . . Ballistic Gun 3 | 1 . 2 Ballistic Cannon . | . . . Launcher 1 | . . 1 Special Weapon . | . . . Impact Weapon . | . . . Slashing Weapon . | . . . Piercing Weapon . | . . . Special Melee Weapon . | . . . Unidentified Prototypes . | . . . Parts Lost 5 | . . 5 Power 1 | . . 1 Propulsion 1 | . . 1 Utility . | . . . Weapon 3 | . . 3 Highest Loss Streak 3 | . . 3 To Critical Strikes . | . . . Average Backups 4 | 1 3 6 Power . | . . . Propulsion . | . . . Utility 1 | 1 1 2 Weapon 1 | . 1 3 Tool/Special . | . . . Unused Backups 3 | . . 3 Power . | . . . Propulsion . | . . . Utility 1 | . . 1 Weapon 2 | . . 2 Tool/Special . | . . . Average Slot Usage (%) 98 | . 100 95 Engine 13 | . 14 11 Treads 27 | . 28 25 Device 13 | . 14 11 Storage 14 | . 14 14 Energy Gun 13 | . 14 11 Ballistic Gun 14 | . 14 15 Peak Build Rating 10 | 9 9 10 Average Rating 8 | 5 9 9 On Entrance 6 | . 9 9 Naked Turns . | . . . Heaviest Build 30 | 13 28 30 Greatest Support 40 | 40 40 40 Greatest Overweight (x) 1 | . . 1 Average Overweight (x) . | . . . Largest Inventory Capacity 15 | 8 15 15 Average Capacity 10 | 5 9 15 Most Carried 8 | 2 5 8 Average Carried 4 | 1 3 7 Final Capacity 15 | 8 15 15 Final Carried 5 | 1 5 5 Class Distribution -------------------- 100% | Mutant Dominant Class ---------------- Mutant | -10/Materials Mutant | -10/Mines Resources | -11 -10 -10 ----------- Run | Yrd Mat Min Matter Collected 409 | 256 132 21 Remotely . | . . . Salvage Created 628 | 167 432 29 Parts 35 | 14 21 . Haulers Intercepted 1 | . 1 . Recyclers Shooed 1 | 1 . . Parts Field Recycled . | . . . Retrieved Matter . | . . . Parts Self-Destructed . | . . . Prevented . | . . . Kills | -11 -10 -10 ------- Run | Yrd Mat Min Combat Hostiles Destroyed 6 | . 3 3 Guns 6 | . 3 3 Classes Destroyed 8 | 2 4 2 Worker 3 | . 3 . Tunneler 4 | 4 . . Hauler 1 | . 1 . Recycler 3 | 1 2 . Operator 1 | . 1 . Grunt 3 | . 3 . Demolisher 1 | . . 1 Assembled 2 | . . 2 Best Kill Streak 5 | 5 2 2 Combat Bots Only 2 | . 1 2 Max Kills in Single Turn 1 | 1 1 1 Gunslinging . | . . . Exploded . | . . . Melee . | . . . Uniques/NPCs Destroyed . | . . . Combat | -11 -10 -10 -------- Run | Yrd Mat Min Hostile Shots Fired 69 | . 13 56 Missed 23 | . 2 21 Hits 46 | . 11 35 Melee 8 | . . 8 Projectile 38 | . 11 27 AOE 5 | . . 5 Part Disruptions 1 | . . 1 Actively Blocked 1 | . . 1 Damage Taken 873 | . 123 750 Core 258 | . 23 235 Absorbed by Shields . | . . . Redirected to Shielding 35 | . . 35 Core Remaining (%) 100 | 100 . . Volleys Fired 45 | 11 25 9 Largest 2 | 1 2 2 Hottest 60 | 20 60 60 Shots Fired 76 | 11 50 15 Gun 75 | 11 50 14 Cannon . | . . . Launcher 1 | . . 1 Special . | . . . Kinetic 48 | 11 25 12 Thermal . | . . . Explosive 1 | . . 1 Electromagnetic 27 | . 25 2 Robot Hit Streak 6 | 6 6 4 Robot Miss Streak 3 | 1 3 2 Penetration Max . | . . . Secondary Targets . | . . . Shots Hit Robots 49 | 9 32 8 Core Hits 25 | 6 15 4 Critical Kills . | . . . Critical Parts Destroyed . | . . . Critical Strikes 1 | . 1 . Corrupt 1 | . 1 . Melee Attacks . | . . . Impact . | . . . Slashing . | . . . Piercing . | . . . Sneak Attacks . | . . . Combat Hostiles . | . . . Follow-up Attacks . | . . . Damage Inflicted 679 | 104 419 156 Guns 616 | 104 419 93 Cannons . | . . . Explosions 63 | . . 63 Melee . | . . . Ramming . | . . . Kinetic 385 | 104 201 80 Thermal . | . . . Explosive 63 | . . 63 Electromagnetic 231 | . 218 13 Impact . | . . . Slashing . | . . . Piercing . | . . . Highest Corruption 2 | . . 2 Average Corruption 2 | . . 2 Corruption Purged . | . . . Corruption Blocked . | . . . Effects 2 | . . 2 Message Errors 1 | . . 1 Heat Flow Errors 1 | . . 1 Overload Shots . | . . . Overflow Damage . | . . . Projectiles . | . . . Explosions . | . . . Melee . | . . . Knockbacks . | . . . Impact . | . . . Kinetic . | . . . Secondary . | . . . Self-Inflicted Damage 6 | . . 6 Shots 1 | . . 1 Rammed . | . . . Targets Rammed . | . . . Kicked . | . . . Crushed . | . . . Highest Temperature 156 | . 30 156 Average Temperature 33 | . 18 72 Received Heat Transfer 152 | . 72 80 Siege Activations . | . . . Martial Activations . | . . . Shielding Activations . | . . . Robots Disrupted . | . . . Combat Hostiles . | . . . Robots Corrupted . | . . . Combat Hostiles . | . . . Parts Fried . | . . . Impact Corruptions . | . . . Robots Melted . | . . . Combat Hostiles . | . . . Parts Melted . | . . . Heat Transferred . | . . . Parts Sabotaged . | . . . Parts Stolen . | . . . Parts Stripped . | . . . Power Chain Reactions . | . . . Alert | -11 -10 -10 ------- Run | Yrd Mat Min Maximum Alert Level . | . . . Low Security (%) 100 | 100 100 100 Level 1 . | . . . Level 2 . | . . . Level 3 . | . . . Level 4 . | . . . Level 5 . | . . . High Security . | . . . Max Security . | . . . Peak Influence 96 | 20 96 35 Initial . | . . . Average 9 | 2 14 2 Influence Increases 288 | 25 197 66 Destroy 0b10 Robot/C 80 | . 60 20 Destroy 0b10 Robot/NC 60 | 25 35 . Destroy Leader 22 | . 22 . Trap Triggered on 0b10 10 | . 10 . Successful Hack 9 | . 9 . Select Force Hacks 30 | . 30 . Destroy Structure 2 | . 1 1 Partial Spotted 30 | . 15 15 Lose Combat Pursuer 45 | . 15 30 Influence Decreases 287 | 25 197 65 Time Decay 252 | 25 197 30 Lost Part 35 | . . 35 Squads Dispatched 2 | . 2 . Investigation 1 | . 1 . Extermination . | . . . Reinforcement 1 | . 1 . Assault . | . . . Garrison . | . . . Intercept . | . . . Searches Triggered . | . . . Construction Impeded . | . . . Haulers Reinforced . | . . . Active Scanning Responses . | . . . Cargo Convoy Interrupts . | . . . Stealth | -11 -10 -10 --------- Run | Yrd Mat Min Distress Signals 1 | . . 1 Communications Jammed . | . . . Distress Signals . | . . . Times Spotted 30 | . 6 24 Peak Tracking Total 15 | . 2 15 Tactical Retreats 2 | . 1 1 Traps | -11 -10 -10 ------- Run | Yrd Mat Min Traps Triggered . | . . . Indirectly . | . . . Trap Hack Attempts . | . . . Triggered . | . . . Disarmed . | . . . Reprogrammed 6 | . 6 . Reused 1 | . 1 . Traps Extracted . | . . . Installed . | . . . Triggered 1 | . 1 . Machines | -11 -10 -10 ---------- Run | Yrd Mat Min Machines Disabled . | . . . Max in Single Turn . | . . . Machines Repaired . | . . . Machines Dismantled . | . . . Machines Sabotaged . | . . . Overloaded Fab Kills . | . . . Hacking | -11 -10 -10 --------- Run | Yrd Mat Min Machines Accessed 5 | . 5 . Terminals 4 | . 4 . Fabricators . | . . . Repair Stations . | . . . Recycling Units 1 | . 1 . Scanalyzers . | . . . Garrison Access . | . . . Total Hacks 17 | . 17 . Successful 7 | . 7 . Failed 10 | . 10 . Catastrophic 1 | . 1 . Database Lockouts . | . . . Manual 13 | . 13 . Terminals 15 | . 15 . Fabricators . | . . . Repair Stations . | . . . Recycling Units 2 | . 2 . Scanalyzers . | . . . Garrison Access . | . . . Terminal Hacks 4 | . 4 . Robot Analysis 2 | . 2 . Terminal Index 1 | . 1 . Reprogram Traps 1 | . 1 . Fabricator Hacks . | . . . Repair Station Hacks . | . . . Recycling Unit Hacks . | . . . Scanalyzer . | . . . Garrison Access Hacks . | . . . Unauthorized Hacks 3 | . 3 . Terminals 2 | . 2 . Botnet 2 | . 2 . Fabricators . | . . . Repair Stations . | . . . Recycling Units 1 | . 1 . Tunnel 1 | . 1 . Scanalyzers . | . . . Garrison Access . | . . . Data Cores Recovered 1 | . 1 . Used . | . . . Hacking Detections 4 | . 4 . Full Trace Events 4 | . 4 . Feedback Events . | . . . Feedback Blocked . | . . . Robot Schematics Acquired . | . . . Robots Built . | . . . Authchips . | . . . Time . | . . . Total Robot Build Rating . | . . . Part Schematics Acquired . | . . . Parts Built . | . . . Authchips . | . . . Time . | . . . Total Part Build Rating . | . . . Parts Repaired . | . . . Time . | . . . Parts Recycled . | . . . Recycled Matter . | . . . Retrieved Matter . | . . . Retrieved Components . | . . . Parts Scanalyzed . | . . . Part Schematics Acquired . | . . . Parts Damaged . | . . . Bothacking | -11 -10 -10 ------------ Run | Yrd Mat Min Used RIF Installer . | . . . Robots Hacked . | . . . Non-combat . | . . . Combat . | . . . Robot Hacks Applied . | . . . Relay Couplers Released . | . . . Fabnet Peak Effective % . | . . . Robots Rewired . | . . . Allies Hacked . | . . . Hacks Repelled . | . . . Allies | -11 -10 -10 -------- Run | Yrd Mat Min Total Allies . | . . . Largest Group . | . . . Highest-Rated Group . | . . . Highest-Rated Ally . | . . . Total Orders . | . . . Ally Attacks . | . . . Total Damage . | . . . Kills . | . . . Allies Corrupted . | . . . Allies Melted . | . . . Intel | -11 -10 -10 ------- Run | Yrd Mat Min Active Infowar (turns) 1221 | 69 834 318 Terrain 1221 | 69 834 318 Robot Analysis Total 2 | . 2 . Derelict Logs Recovered 1 | . . 1 Drone Launches . | . . . Drone Recoveries . | . . . Exploration | -11 -10 -10 ------------- Run | Yrd Mat Min Turns Passed 1375 | 152 834 389 Spaces Moved 756 | 76 467 213 Core 2 | 2 . . Treads 754 | 74 467 213 Legs . | . . . Wheels . | . . . Hover . | . . . Flight . | . . . Fastest Speed 50 | 50 160 160 Average Speed 161 | 157 160 167 Slowest Speed 240 | 160 160 240 Overloaded Moves . | . . . Propulsion Burnouts . | . . . Robots Hopped . | . . . Potential Cave-ins . | . . . Cave-ins Triggered . | . . . Exploration Rate (%) 36 | 4 46 60 Regions Visited 2 Branch Regions 1 Pre-discovered Areas 1 | . 1 . Known Exits Taken . | . . . Unknown Exits Taken 2 | 1 1 . Scrap Searched 1 | . . 1 Spaces Dug . | . . . Terrain Destroyed 4 | . . 4 Melee . | . . . Projectile . | . . . AOE 4 | . . 4 Terrain Rammed . | . . . Walls Destroyed . | . . . Machines Disabled . | . . . Actions | -11 -10 -10 --------- Run | Yrd Mat Min Total 828 | 95 503 230 Wait 8 | . 8 . Move 754 | 75 466 213 Hop . | . . . Pick Up 8 | 2 3 3 Fast Attach 7 | 6 . 1 Attach 4 | 1 . 3 Detach . | . . . Swap 2 | . 1 1 Drop . | . . . Fire 45 | 11 25 9 Melee . | . . . Ram . | . . . Kick . | . . . Crush . | . . . Escape Stasis . | . . . Rewire . | . . . Trap . | . . . Miscellaneous . | . . . Route ------- -11/Scrapyard -10/Materials (discovered 2 exits: [*Min x2]) -10/Mines (discovered 3 exits: [*Mat] / [*Exi] / [Sub]) History --------- Turn | Location | Event 9 | -11/Scrapyard | Discovered new exit (range 16) 153 | -11/Scrapyard | Entered Materials 239 | -10/Materials | Discovered new exit (range 5) 297 | -10/Materials | Met 8R-AWN 313 | -10/Materials | Build established: Mutant 444 | -10/Materials | Discovered new exit (range 11) 987 | -10/Materials | Entered Mines 989 | -10/Mines | Followed 8R-AWN into the Mines 1068 | -10/Mines | Learned Materials interactive machine intel 1079 | -10/Mines | Discovered new exit (range 10) 1092 | -10/Mines | Received a Rocket Launcher from a helpful Derelict 1120 | -10/Mines | Discovered new exit (range 5) 1205 | -10/Mines | Discovered new exit (range 8) 1250 | -10/Mines | Assembled infested the area 1304 | -10/Mines | Core integrity fell below 50% 1343 | -10/Mines | Lost 3 parts (1p1n1w) 1347 | -10/Mines | Core integrity fell below 20% 1376 | -10/Mines | Destroyed by as-55944 with Assembled F-torch Last Messages --------------- 01331_ as-25386 destroyed. 01335_ as-96063 destroyed. 01336_ The unstable cave ceiling collapses. 01337_ as-61471 destroyed. 01338_ D-53 Grenadier destroyed. 01346_ Assault Rifle destroyed. 01346_ System corrupted by crushing effect (+2). 01348_ U-05 Engineer lays Concrete. 01349_ System corrupted: Heat flow error (+164). 01349_ U-05 Engineer builds a Wall. 01351_ as-74436 destroyed. 01353_ U-05 Engineer builds a Wall. 01354_ The unstable cave ceiling collapses. 01357_ U-05 Engineer lays Concrete. 01358_ Acquired Lgt. Assault Rifle. 01358_ U-05 Engineer builds a Wall. 01364_ The unstable cave ceiling collapses. 01367_ U-05 Engineer lays Concrete. 01369_ Assault Rifle destroyed. 01373_ IB6SGM&LD4S0<2EUUKBFWKGQ5Y:K:EUTXWPN5ZL: Map ----- +----------------------------------------------------+ | ?#?## ##??????#?# ##???????????#??????# | | ???# %##???????####???????????????#????##### | | ???# ########??##?#??????????#???????????## | | ??## ###??????#????????????????????## | | ??# ## ### #?????????????????????????????#? | | ??# ### #?? ????????#???#?#???????????????#? | | ??## ##?# #?# ?????????#?????????????????????? | | ??########### #?# ????????? ??????????# ???????### | | ???#??#?# #?# ?????#???????????????????????# | | ??#?#???# ## ?# ?##?#?#??????????????????????# " | | ???#???## ## ###????????#?????????????????# " | | ????????#= # ##????????????????????????# " | | ??????###=% # # #?????????????????#???#???# " | | ????#?## %= # #????????????????????#????# | | ?????## # #?????#??????????#??????#?# | | ?????# # #?#???????????????????????# | | ?#?# =* # #########?????????????????# | | ??# =% # # ######?????????????# | | ? ## # # ##????????????# | | #?### % #??????????? ### | | ???# * % ### "????????? | | ?## !% a "???????? | | # ## ?????### | | ######## a ##?????#???????? | | ? ????????# ## #??????????????? | | ??? #????????#@#?# # #?????????#????? | | ????? = #?????????# #??## #??????????????? | | ????? %= #??????????# #????? ##??????????????? | | ?????? #???????????# #????? #???????????????? | | ?????? ## ???????????? #??????#???????????????? | | ?????????# ?????????????###??????????????????????? | | ?????????#???????????????????????????????????????? | | ?????????????????????????????????????????????????? | | ?????????????????????????????????????????????????? | | ?????????????????????????????????????????????????? | | ?????????????????????????????????????????????????? | | ?????????????????????????????????????????????????? | | ?????????????????????????????????????????????????? | | ?????????????????????????????????????????????????? | | ?????????????????????????????????????????????????? | | ?????????????????????????????????????????????????? | | ?????????????????????????????????????????????????? | | ?????????????????????????????????????????????????? | | ?????????????????????????????????????????????????? | | ?????????????????????????????????????????????????? | | ?????????????????????????????????????????????????? | | ?????????????????????????????????????????????????? | | ?????????????????????????????????????????????????? | | ?????????????????????????????????????????????????? | | ?????????????????????????????????????????????????? | +----------------------------------------------------+ Best States ------------- Heat Dissipation 25 Energy Generation 14 Energy Capacity 160 Matter Stores 300 Matter Capacity 300 Sight Range 16 Terrain Scan Range 16 Terrain Scan Density 10 Propulsion Shielding 33 Evasion (%) 40 Recoil Reduction 2 Item Schematics ----------------- None Robot Schematics ------------------ None Fabricated ------------ Nothing Repaired ---------- Nothing Alien Tech Used ----------------- None Achievements -------------- None Challenges ------------ None Game ------ Seed ChromaticUltimateCore Manual? 0 Play Time 00:09:58 Cumulative 258.1 hours Start 2025.06.07 @ 12:57:13 End 2025.06.07 @ 13:04:29 Sessions 1 Manual Loads 0 Difficulty Rogue Special Mode None Game No. 159 Rogue 159 Adventurer 0 Explorer 0 Win Type - Total 3 Types 1/0/1/1/0/0/0/0/0/0 Lore% 80 Gallery% 66 Achievement% 63 Wizard Run 0 Options --------- Layout 2 ASCII 0 Keyboard 1 Movement Vi Keybinds 0 Fullscreen 1 Font 16/Tamsyn Map View 55x47 Zoom Use 0% Tactical HUD 1 Map Filters NONE Filters NONE Steam 0 RUN: b5682b50-1173-4fe8-ac79-f0e3d73436a3